{"text_format":"1","workbook":"xlsx","n_sheets":2,"sheets":["Agency Info","OSR Info"],"not_rendered":{"charts":0,"images":0,"macros":1,"external_links":0,"defined_names":5,"comments":0,"pivot_tables":0},"unopened":[],"bounds":{"document_bytes":16777216,"sheet_cells":100000,"rows_first":2000,"rows_last":500,"rows_between":2000,"halvings":0,"cell_chars":16384,"cell_head_chars":4096},"cells_cut":0,"cells_raw":0,"read":"whole","date_system":"1900"}

{"sheet":"Agency Info","index":0,"n_rows":111,"n_cols":11,"rows_kept":111,"cut":false,"hidden":false,"merged":[[101,0,101,5],[0,0,0,10]]}
["June 2026 Louisiana Register Publication Queue"]
["Log In #","AGY#","Billing and/or Contact Information                 ","Doc Type","Dept","Office","Lines","Line Charge","Typesetting Charge","Total Due","Document Name "]
["2606#001",null,null,"RUL","GOV","Department of Veterans Affairs",null,null,null,null,"Waiver of Fees for Certain Spouses"]
["2606#002",null,null,"EMR","DWF","Wildlife and Fisheries Commission",null,null,null,null,"2026 Red Snapper Season Bag Modification"]
["2606#003",null,null,"RUL","GOV","DOA/Louisiana Tax Commission",null,null,null,null,"Ad Valorem - Rules and Regulations"]
["2606#004",null,null,"PPM","DOA","Office of State Travel",null,null,null,null,"PPM49"]
["2606#005",null,null,"POT","GOV","LA Auctioneers Licensing Board",null,null,null,null,"Notice of Public Hearning/Request for Comments for Rulemaking"]
["2606#006",null,null,"RUL","DWF","Wildlife and Fisheries Commission",null,null,null,null,"Natural and Scenic Rivers Systems"]
["2606#007",null,null,"RUL","DWF","Wildlife and Fisheries Commission",null,null,null,null,"Wildlife Rehabilitation Program"]
["2606#008",null,null,"POT","DOI","Office of Health, Life, & Annuity Insurance",null,null,null,null,"Annual HIPAA Assessment Rate"]
["2606#009",null,null,"EMR","DAF","Office of Agricultural and Enviornmental Sciences/Agricultural Chemistry & Seed Commission",null,null,null,null,"Removal of Sampling for the Yellow Leaf Virus in the Field (LAC 7:XIII.763)"]
["2606#010",null,null,"EMR","DWF","Wildlife and Fisheries Commission",null,null,null,null,"2026-2027 Waterfowl Falconry Season"]
["2606#011"]
["2606#012"]
["2606#013"]
["2606#014"]
["2606#015"]
["2606#016"]
["2606#017"]
["2606#018"]
["2606#019"]
["2606#020"]
["2606#021"]
["2606#022"]
["2606#023"]
["2606#024"]
["2606#025"]
["2606#026"]
["2606#027"]
["2606#028"]
["2606#029"]
["2606#030"]
["2606#031"]
["2606#032"]
["2606#033"]
["2606#034"]
["2606#035"]
["2606#036"]
["2606#037"]
["2606#038"]
["2606#039"]
["2606#040"]
["2606#041"]
["2606#042"]
["2606#043"]
["2606#044"]
["2606#045"]
["2606#046"]
["2606#047"]
["2606#048"]
["2606#049"]
["2606#050"]
["2606#051"]
["2606#052"]
["2606#053"]
["2606#054"]
["2606#055"]
["2606#056"]
["2606#057"]
["2606#058"]
["2606#059"]
["2606#060"]
["2606#061"]
["2606#062"]
["2606#063"]
["2606#064"]
["2606#065"]
["2606#066"]
["2606#067"]
["2606#068"]
["2606#069"]
["2606#070"]
["2606#071"]
["2606#072"]
["2606#073"]
["2606#074"]
["2606#075",null,null,null,null,null,null,{"$f":"(213/128)*G77","v":0},null,{"$f":"H77+I77","v":0}]
["2606#076",null,null,null,null,null,null,0,null,0]
["2606#077",null,null,null,null,null,null,0,null,0]
["2606#078",null,null,null,null,null,null,0,null,0]
["2606#079",null,null,null,null,null,null,0,null,0]
["2606#080",null,null,null,null,null,null,0,null,0]
["2606#081",null,null,null,null,null,null,0,null,0]
["2606#082",null,null,null,null,null,null,0,null,0]
["2606#083",null,null,null,null,null,null,0,null,0]
["2606#084",null,null,null,null,null,null,0,null,0]
["2606#085",null,null,null,null,null,null,0,null,0]
["2606#086",null,null,null,null,null,null,0,null,0]
["2606#087",null,null,null,null,null,null,0,null,0]
["2606#088",null,null,null,null,null,null,0,null,0]
["2606#089",null,null,null,null,null,null,0,null,0]
["2606#090",null,null,null,null,null,null,0,null,0]
[null,null,null,null,null,null,null,{"$f":"(213/128)*G93","v":0}]
[null,null,null,null,null,null,null,0]
[null,null,null,null,null,null,null,0]
[null,null,null,null,null,null,null,0]
[null,null,null,null,null,null,null,0]
[null,null,null,null,null,null,null,0]
[null,null,null,null,null,null,null,0,null,{"$f":"SUM(H99:I99)","v":0}]
[null,null,null,null,null,null,null,0,null,{"$f":"SUM(H100:I100)","v":0}]
[null,null,null,null,null,null,null,{"$f":"(213/128)*G101","v":0},null,{"$f":"SUM(H101+I101)","v":0}]
["Totals:",null,null,null,null,null,null,{"$f":"SUM(H3:H101)","v":0},{"$f":"SUM(I3:I101)","v":0},{"$f":"SUM(J3:J101)","v":0}]
[null,null,"LP Gas invoices may be sent to Jayasree.Sanampudi@la.gov\nOFM invoices may be sent to Yolanda.T.Jones@la.gov\nState Police and Fire Marshal’s office may be sent to Kevin.Cook@la.gov\nLDI invoices may be sent to Christopher.Bahm@LDI.LA.GOV\n\nWe received a call from agency 440 stating that we used the wrong ORG coding so instead of using ORG 4403 they would like us to use ORG 4401\n\n"]
[null,null,"For BHSF: Shannon Carriere (Shannon.Carriere3@LA.GOV) with the Medicaid Policy and Compliance Section"]
[null,null,"For BESE (DOE): 678/6781/4940/Reporting: 1001"]
[null,null,"LWC Coding:Agency:  474\nOrg:  4742\nObj: 4960\n"]
[null,null,"All Education Bulletins promulgated by BESE are to be billed to: Natoria Ingram (DOE) <Natoria.Ingram2@la.gov>"]
[null,null,"Any BESE document billing (LAC 28:I) are to be billed to: Daria.Martin@LA.GOV"]
[]
[null,null,"All DNR billing goes to: Kay.O'Brien@la.gov"]
[null,null,"All Board of Nursing billing goes to: invoices@lsbn.state.la.us"]

{"sheet":"OSR Info","index":1,"n_rows":0,"n_cols":0,"rows_kept":0,"cut":false,"hidden":false,"merged":[]}